[Event "*** Titled Tuesday Blitz"]
[Site "Chess.com"]
[Date "2020.04.21"]
[Round "7"]
[White "chenxiaoyuer"]
[Black "Shuvatkin_Vladimir"]
[Result "0-1"]
[WhiteElo "2125"]
[BlackElo "2296"]
[TimeControl "180+1"]
[EndTime "11:23:05 PDT"]
[Termination "Shuvatkin_Vladimir won on time"]

1. e4 {[%clk 0:03:00.9]} 1... e6 {[%clk 0:02:57.3]} 2. d4 {[%clk 0:03:00.2]}
2... d5 {[%clk 0:02:57.5]} 3. Nd2 {[%clk 0:02:59.7]} 3... dxe4 {[%clk
0:02:57.9]} 4. Nxe4 {[%clk 0:02:59.7]} 4... Bd7 {[%clk 0:02:58.4]} 5. Nf3 {[%clk
0:02:59.4]} 5... Bc6 {[%clk 0:02:58.8]} 6. Bd3 {[%clk 0:02:59]} 6... Nd7 {[%clk
0:02:59.1]} 7. O-O {[%clk 0:02:58.5]} 7... Ngf6 {[%clk 0:02:59.5]} 8. Ned2
{[%clk 0:02:58.2]} 8... Be7 {[%clk 0:02:59.1]} 9. Nc4 {[%clk 0:02:54.2]} 9...
O-O {[%clk 0:02:56.2]} 10. Nce5 {[%clk 0:02:51.3]} 10... Nxe5 {[%clk 0:02:55.6]}
11. Nxe5 {[%clk 0:02:50.3]} 11... Qd5 {[%clk 0:02:53.6]} 12. Nxc6 {[%clk
0:02:45.5]} 12... Qxc6 {[%clk 0:02:53.5]} 13. Qe2 {[%clk 0:02:40.5]} 13... Qd6
{[%clk 0:02:49.5]} 14. c3 {[%clk 0:02:37.1]} 14... c5 {[%clk 0:02:49.2]} 15.
dxc5 {[%clk 0:02:36.1]} 15... Qxc5 {[%clk 0:02:48.9]} 16. Be3 {[%clk 0:02:35.8]}
16... Qc6 {[%clk 0:02:45.9]} 17. Bd4 {[%clk 0:02:34]} 17... Rfd8 {[%clk
0:02:43.9]} 18. Rad1 {[%clk 0:02:30.5]} 18... a6 {[%clk 0:02:42.9]} 19. Bb1
{[%clk 0:02:27.9]} 19... Ne8 {[%clk 0:02:31.7]} 20. Be4 {[%clk 0:02:21.3]} 20...
Qc7 {[%clk 0:02:28.7]} 21. Qe3 {[%clk 0:02:09.8]} 21... Bf6 {[%clk 0:02:16.5]}
22. Bb6 {[%clk 0:02:03.2]} 22... Rxd1 {[%clk 0:02:13]} 23. Bxc7 {[%clk 0:02:00]}
23... Rxf1+ {[%clk 0:02:12.4]} 24. Kxf1 {[%clk 0:02:00.9]} 24... Nxc7 {[%clk
0:02:12.5]} 25. Bxb7 {[%clk 0:01:57.7]} 25... Rb8 {[%clk 0:02:11.4]} 26. Qa7
{[%clk 0:01:54]} 26... Rd8 {[%clk 0:02:08.1]} 27. Be4 {[%clk 0:01:48.5]} 27...
Be5 {[%clk 0:02:00.3]} 28. g3 {[%clk 0:01:45.6]} 28... g5 {[%clk 0:01:59]} 29.
Ke2 {[%clk 0:01:43.1]} 29... h6 {[%clk 0:01:58.4]} 30. Qb6 {[%clk 0:01:29.6]}
30... Kg7 {[%clk 0:01:55]} 31. Bd3 {[%clk 0:01:21.9]} 31... Ra8 {[%clk 0:01:17]}
32. Qc5 {[%clk 0:01:07.4]} 32... Kf6 {[%clk 0:01:12.2]} 33. Be4 {[%clk
0:00:53.4]} 33... Rb8 {[%clk 0:01:11.4]} 34. b4 {[%clk 0:00:50.1]} 34... Nb5
{[%clk 0:01:06.9]} 35. Bd3 {[%clk 0:00:42.9]} 35... Nxc3+ {[%clk 0:01:00.5]} 36.
Kf3 {[%clk 0:00:41.3]} 36... Nxa2 {[%clk 0:01:00.3]} 37. Bxa6 {[%clk 0:00:39.6]}
37... Nxb4 {[%clk 0:00:59.6]} 38. Bc4 {[%clk 0:00:38.2]} 38... Nc2 {[%clk
0:00:42.2]} 39. Kg2 {[%clk 0:00:35.8]} 39... Nd4 {[%clk 0:00:42]} 40. Bd3 {[%clk
0:00:34]} 40... Rb2 {[%clk 0:00:40.4]} 41. Kf1 {[%clk 0:00:26.5]} 41... Nb3
{[%clk 0:00:36.9]} 42. Qc8 {[%clk 0:00:20.9]} 42... Bd4 {[%clk 0:00:31.6]} 43.
Qd8+ {[%clk 0:00:19.9]} 43... Kg7 {[%clk 0:00:29.5]} 44. Be2 {[%clk 0:00:18.8]}
44... e5 {[%clk 0:00:25.5]} 45. Qd7 {[%clk 0:00:14.9]} 45... Nd2+ {[%clk
0:00:23.9]} 46. Kg2 {[%clk 0:00:14.5]} 46... Ne4 {[%clk 0:00:23.9]} 47. Kf1
{[%clk 0:00:10.2]} 47... Nxf2 {[%clk 0:00:22.8]} 48. Qf5 {[%clk 0:00:09.7]}
48... Ra2 {[%clk 0:00:18.6]} 49. Bc4 {[%clk 0:00:08.1]} 49... Ra1+ {[%clk
0:00:15.4]} 50. Kg2 {[%clk 0:00:07.7]} 50... Ra7 {[%clk 0:00:15.5]} 51. h4
{[%clk 0:00:07.4]} 51... gxh4 {[%clk 0:00:14.3]} 52. gxh4 {[%clk 0:00:07.3]}
52... Rc7 {[%clk 0:00:14.8]} 53. Bd5 {[%clk 0:00:06.1]} 53... Ra7 {[%clk
0:00:13.2]} 54. Bc4 {[%clk 0:00:05]} 54... Re7 {[%clk 0:00:10.3]} 55. Bd5 {[%clk
0:00:04.2]} 55... Rc7 {[%clk 0:00:07.8]} 56. Bb3 {[%clk 0:00:02.2]} 56... Re7
{[%clk 0:00:06.6]} 57. Bc4 {[%clk 0:00:01.8]} 57... Nd1 {[%clk 0:00:05.8]} 0-1

[Event "*** Titled Tuesday Blitz"]
[Site "Chess.com"]
[Date "2020.04.21"]
[Round "7"]
[White "DejanNestor64"]
[Black "Taron_Shagbazyan"]
[Result "1-0"]
[WhiteElo "2432"]
[BlackElo "2621"]
[TimeControl "180+1"]
[EndTime "11:23:09 PDT"]
[Termination "DejanNestor64 won by resignation"]

1. d4 {[%clk 0:02:59.3]} 1... Nf6 {[%clk 0:02:58.2]} 2. c4 {[%clk 0:02:58.3]}
2... e6 {[%clk 0:02:58]} 3. Nc3 {[%clk 0:02:57.7]} 3... Bb4 {[%clk 0:02:58.1]}
4. Nf3 {[%clk 0:02:57.2]} 4... d5 {[%clk 0:02:57.7]} 5. Bg5 {[%clk 0:02:56.3]}
5... O-O {[%clk 0:02:56.6]} 6. e3 {[%clk 0:02:55.6]} 6... h6 {[%clk 0:02:54]} 7.
Bh4 {[%clk 0:02:54.7]} 7... c5 {[%clk 0:02:44]} 8. cxd5 {[%clk 0:02:47.7]} 8...
exd5 {[%clk 0:02:43.2]} 9. Rc1 {[%clk 0:02:39.4]} 9... Nc6 {[%clk 0:02:27.5]}
10. dxc5 {[%clk 0:02:33.8]} 10... g5 {[%clk 0:02:23.3]} 11. Bg3 {[%clk 0:02:31]}
11... Ne4 {[%clk 0:02:23]} 12. Be2 {[%clk 0:02:17.7]} 12... Re8 {[%clk
0:02:01.1]} 13. O-O {[%clk 0:02:16]} 13... Nxc3 {[%clk 0:01:24.2]} 14. bxc3
{[%clk 0:02:15.1]} 14... Bxc5 {[%clk 0:01:24.7]} 15. Nd4 {[%clk 0:02:01.1]}
15... Ne5 {[%clk 0:01:18.4]} 16. Qb3 {[%clk 0:01:49.3]} 16... Ng6 {[%clk
0:00:28.9]} 17. Rfd1 {[%clk 0:01:45.8]} 17... Bb6 {[%clk 0:00:29]} 18. c4 {[%clk
0:01:42.7]} 18... dxc4 {[%clk 0:00:27.5]} 19. Bxc4 {[%clk 0:01:41]} 19... Qf6
{[%clk 0:00:27.4]} 20. Nb5 {[%clk 0:01:32.3]} 20... Bg4 {[%clk 0:00:25.1]} 21.
Rd6 {[%clk 0:01:22.8]} 21... Be6 {[%clk 0:00:25.1]} 22. h3 {[%clk 0:00:49.4]}
22... Rac8 {[%clk 0:00:19.9]} 23. Rc3 {[%clk 0:00:35.1]} 23... Ba5 {[%clk
0:00:16.6]} 24. Rc2 {[%clk 0:00:34.5]} 24... Nf8 {[%clk 0:00:12.7]} 25. Bxe6
{[%clk 0:00:32.8]} 25... Nxe6 {[%clk 0:00:11.8]} 26. Nxa7 {[%clk 0:00:28]} 26...
Rxc2 {[%clk 0:00:11.3]} 27. Qxc2 {[%clk 0:00:28.2]} 27... Bb4 {[%clk 0:00:07.1]}
28. Rd7 {[%clk 0:00:23.5]} 28... Bf8 {[%clk 0:00:04.6]} 29. Rxb7 {[%clk
0:00:21.9]} 29... h5 {[%clk 0:00:02.9]} 30. Qb2 {[%clk 0:00:16.3]} 30... Qxb2
{[%clk 0:00:01.9]} 31. Rxb2 {[%clk 0:00:15.2]} 31... h4 {[%clk 0:00:02.8]} 32.
Be5 {[%clk 0:00:11.4]} 32... Ra8 {[%clk 0:00:02.9]} 33. Nc6 {[%clk 0:00:10.3]}
33... Kh7 {[%clk 0:00:03.8]} 34. Nd4 {[%clk 0:00:09.7]} 34... Ra6 {[%clk
0:00:03.8]} 35. Nxe6 {[%clk 0:00:09.7]} 35... fxe6 {[%clk 0:00:04.7]} 36. Bd4
{[%clk 0:00:09.8]} 36... Kg6 {[%clk 0:00:05.2]} 37. g3 {[%clk 0:00:10]} 37...
Kf5 {[%clk 0:00:05]} 38. gxh4 {[%clk 0:00:09.7]} 38... gxh4 {[%clk 0:00:05.1]}
39. Kg2 {[%clk 0:00:10.2]} 39... e5 {[%clk 0:00:04.8]} 40. Bc3 {[%clk
0:00:09.1]} 40... Bd6 {[%clk 0:00:05.3]} 41. Bb4 {[%clk 0:00:09]} 41... Bxb4
{[%clk 0:00:05.1]} 42. Rxb4 {[%clk 0:00:08.6]} 42... Rxa2 {[%clk 0:00:06]} 43.
Rxh4 {[%clk 0:00:08.4]} 43... e4 {[%clk 0:00:06.3]} 44. Rh5+ {[%clk 0:00:07.3]}
44... Kf6 {[%clk 0:00:06.7]} 45. Kg3 {[%clk 0:00:07.3]} 45... Ke6 {[%clk
0:00:07.2]} 46. Rg5 {[%clk 0:00:07.2]} 46... Kf6 {[%clk 0:00:06.7]} 47. Rg4
{[%clk 0:00:06.4]} 47... Ke5 {[%clk 0:00:07.2]} 48. h4 {[%clk 0:00:05]} 48...
Ra1 {[%clk 0:00:07.2]} 49. h5 {[%clk 0:00:05]} 49... Rg1+ {[%clk 0:00:06.4]} 50.
Kh4 {[%clk 0:00:04.6]} 50... Rf1 {[%clk 0:00:07]} 51. Rg2 {[%clk 0:00:03.6]}
51... Rh1+ {[%clk 0:00:06.8]} 52. Kg5 {[%clk 0:00:03.6]} 52... Ra1 {[%clk
0:00:07.1]} 53. h6 {[%clk 0:00:03.7]} 53... Ra8 {[%clk 0:00:08]} 54. Rh2 {[%clk
0:00:03.1]} 54... Kd6 {[%clk 0:00:08.3]} 55. Kf6 {[%clk 0:00:02.9]} 55... Rf8+
{[%clk 0:00:08.4]} 56. Kg7 {[%clk 0:00:03.1]} 56... Rf3 {[%clk 0:00:08.5]} 57.
h7 {[%clk 0:00:03]} 57... Ke7 {[%clk 0:00:08.9]} 58. h8=Q {[%clk 0:00:02.7]}
58... Rf7+ {[%clk 0:00:09.8]} 59. Kg6 {[%clk 0:00:03]} 59... Rf6+ {[%clk
0:00:09.4]} 60. Qxf6+ {[%clk 0:00:02.6]} 60... Kd7 {[%clk 0:00:10.3]} 1-0

[Event "*** Titled Tuesday Blitz"]
[Site "Chess.com"]
[Date "2020.04.21"]
[Round "7"]
[White "PauloCesarCosta_sad"]
[Black "kakakz"]
[Result "1/2-1/2"]
[WhiteElo "2094"]
[BlackElo "2368"]
[TimeControl "180+1"]
[EndTime "11:23:09 PDT"]
[Termination "Game drawn by repetition"]

1. Nf3 {[%clk 0:03:00.9]} 1... Nf6 {[%clk 0:02:59]} 2. c4 {[%clk 0:03:00.5]}
2... g6 {[%clk 0:02:59.9]} 3. d4 {[%clk 0:02:59.7]} 3... Bg7 {[%clk 0:02:59.9]}
4. Nc3 {[%clk 0:02:59.9]} 4... d6 {[%clk 0:02:59.1]} 5. g3 {[%clk 0:02:58.2]}
5... O-O {[%clk 0:02:58.5]} 6. Bg2 {[%clk 0:02:58.6]} 6... c6 {[%clk 0:02:58.7]}
7. O-O {[%clk 0:02:58.8]} 7... Nbd7 {[%clk 0:02:58.6]} 8. b3 {[%clk 0:02:55.7]}
8... Re8 {[%clk 0:02:57.7]} 9. Bb2 {[%clk 0:02:54.9]} 9... e5 {[%clk 0:02:57.3]}
10. dxe5 {[%clk 0:02:54.3]} 10... dxe5 {[%clk 0:02:56.5]} 11. Qd6 {[%clk
0:02:51.8]} 11... Bf8 {[%clk 0:02:50.4]} 12. Qd2 {[%clk 0:02:45.4]} 12... Qc7
{[%clk 0:02:49]} 13. Rad1 {[%clk 0:02:44.9]} 13... a5 {[%clk 0:02:48.6]} 14. Ng5
{[%clk 0:02:33.6]} 14... Nc5 {[%clk 0:02:35]} 15. Nce4 {[%clk 0:02:23.7]} 15...
Nfxe4 {[%clk 0:02:29.7]} 16. Nxe4 {[%clk 0:02:23.7]} 16... f5 {[%clk 0:02:30]}
17. Nxc5 {[%clk 0:02:10.2]} 17... Bxc5 {[%clk 0:02:28.6]} 18. e3 {[%clk
0:01:57]} 18... Bb4 {[%clk 0:02:11.9]} 19. Bc3 {[%clk 0:01:55.8]} 19... Bc5
{[%clk 0:01:49.8]} 20. Qb2 {[%clk 0:01:49.4]} 20... Qe7 {[%clk 0:01:24.5]} 21.
Rfe1 {[%clk 0:01:41.7]} 21... Ba3 {[%clk 0:01:22.1]} 22. Qc2 {[%clk 0:01:36.6]}
22... Qc7 {[%clk 0:01:17.2]} 23. Bb2 {[%clk 0:01:34.9]} 23... Bb4 {[%clk
0:01:14.3]} 24. Bc3 {[%clk 0:01:35.2]} 24... Bf8 {[%clk 0:01:14.3]} 25. Qb2
{[%clk 0:01:31.6]} 25... Bg7 {[%clk 0:01:12.4]} 26. Rd2 {[%clk 0:01:31.3]} 26...
Be6 {[%clk 0:01:06.9]} 27. Red1 {[%clk 0:01:31.1]} 27... a4 {[%clk 0:01:07.2]}
28. Rd6 {[%clk 0:01:28.2]} 28... axb3 {[%clk 0:00:46.6]} 29. axb3 {[%clk
0:01:27.5]} 29... Bf8 {[%clk 0:00:32.7]} 30. R6d2 {[%clk 0:01:23.3]} 30... Bg7
{[%clk 0:00:30.6]} 31. Rd6 {[%clk 0:01:22.2]} 31... Re7 {[%clk 0:00:30.3]} 32.
Bxe5 {[%clk 0:00:54.2]} 32... Bxe5 {[%clk 0:00:27]} 33. Qxe5 {[%clk 0:00:54.2]}
33... Bxc4 {[%clk 0:00:27.3]} 34. Qc3 {[%clk 0:00:32.4]} 34... Bf7 {[%clk
0:00:26.2]} 35. R6d3 {[%clk 0:00:27.3]} 35... Qe5 {[%clk 0:00:19.9]} 36. Qxe5
{[%clk 0:00:26.3]} 36... Rxe5 {[%clk 0:00:19.6]} 37. Rd7 {[%clk 0:00:23.6]}
37... Rb5 {[%clk 0:00:18.3]} 38. R1d3 {[%clk 0:00:10.3]} 38... Ra3 {[%clk
0:00:13.6]} 39. Rc7 {[%clk 0:00:08.9]} 39... Rbxb3 {[%clk 0:00:11.2]} 40. Rd8+
{[%clk 0:00:07.8]} 40... Kg7 {[%clk 0:00:10.7]} 41. Rdd7 {[%clk 0:00:08]} 41...
Rb1+ {[%clk 0:00:11.1]} 42. Bf1 {[%clk 0:00:07.9]} 42... Raa1 {[%clk 0:00:11.3]}
43. Rxf7+ {[%clk 0:00:07.6]} 43... Kg8 {[%clk 0:00:10.3]} 44. Rg7+ {[%clk
0:00:05]} 44... Kf8 {[%clk 0:00:10.1]} 45. Rgf7+ {[%clk 0:00:05.5]} 45... Kg8
{[%clk 0:00:09.7]} 46. Rg7+ {[%clk 0:00:05.2]} 46... Kf8 {[%clk 0:00:09.8]} 47.
Rgf7+ {[%clk 0:00:03.4]} 47... Ke8 {[%clk 0:00:09.7]} 48. Rfe7+ {[%clk
0:00:03.1]} 48... Kf8 {[%clk 0:00:08.7]} 49. Rf7+ {[%clk 0:00:03.4]} 1/2-1/2

[Event "*** Titled Tuesday Blitz"]
[Site "Chess.com"]
[Date "2020.04.21"]
[Round "7"]
[White "poliplaza"]
[Black "Grineva_Marianna"]
[Result "1/2-1/2"]
[WhiteElo "2400"]
[BlackElo "2198"]
[TimeControl "180+1"]
[EndTime "11:23:10 PDT"]
[Termination "Game drawn by stalemate"]

1. d4 {[%clk 0:02:59.4]} 1... g6 {[%clk 0:02:58.2]} 2. c4 {[%clk 0:02:57.8]}
2... Bg7 {[%clk 0:02:58.5]} 3. Nc3 {[%clk 0:02:58.4]} 3... c5 {[%clk 0:02:57.8]}
4. Nf3 {[%clk 0:02:53.3]} 4... cxd4 {[%clk 0:02:55.2]} 5. Nxd4 {[%clk
0:02:54.2]} 5... Nc6 {[%clk 0:02:55.6]} 6. e3 {[%clk 0:02:48]} 6... Nf6 {[%clk
0:02:43.7]} 7. Be2 {[%clk 0:02:46]} 7... O-O {[%clk 0:02:43.2]} 8. O-O {[%clk
0:02:46.2]} 8... d6 {[%clk 0:02:37.5]} 9. Bf3 {[%clk 0:02:43.6]} 9... Ne5 {[%clk
0:02:29.9]} 10. Be2 {[%clk 0:02:43.8]} 10... Bd7 {[%clk 0:02:26]} 11. b3 {[%clk
0:02:43.9]} 11... Rc8 {[%clk 0:02:25]} 12. Bb2 {[%clk 0:02:43.9]} 12... a6
{[%clk 0:02:24.5]} 13. h3 {[%clk 0:02:36.7]} 13... Qa5 {[%clk 0:02:11]} 14. a3
{[%clk 0:02:23.2]} 14... Nc6 {[%clk 0:02:07]} 15. b4 {[%clk 0:02:17]} 15... Qc7
{[%clk 0:02:00.1]} 16. Nb3 {[%clk 0:02:10.2]} 16... Ne5 {[%clk 0:01:54.9]} 17.
c5 {[%clk 0:01:55.9]} 17... dxc5 {[%clk 0:01:36.9]} 18. Nxc5 {[%clk 0:01:54.6]}
18... Bc6 {[%clk 0:01:37]} 19. Rc1 {[%clk 0:01:46.6]} 19... Rcd8 {[%clk
0:01:35.1]} 20. Qb3 {[%clk 0:01:44.1]} 20... Nd5 {[%clk 0:01:08.3]} 21. f4
{[%clk 0:01:24.7]} 21... Nxe3 {[%clk 0:00:58.5]} 22. fxe5 {[%clk 0:01:23.5]}
22... Nxf1 {[%clk 0:00:55.5]} 23. Rxf1 {[%clk 0:01:17.6]} 23... Qxe5 {[%clk
0:00:44]} 24. Bf3 {[%clk 0:00:42.7]} 24... Qe3+ {[%clk 0:00:39.3]} 25. Kh1
{[%clk 0:00:40.2]} 25... Rd2 {[%clk 0:00:18.7]} 26. Nd1 {[%clk 0:00:23.6]} 26...
Qxb3 {[%clk 0:00:14.2]} 27. Nxb3 {[%clk 0:00:24.5]} 27... Rxd1 {[%clk
0:00:14.5]} 28. Rxd1 {[%clk 0:00:21.9]} 28... Bxb2 {[%clk 0:00:15]} 29. Bxc6
{[%clk 0:00:22.3]} 29... bxc6 {[%clk 0:00:15.4]} 30. Na5 {[%clk 0:00:22.1]}
30... Bxa3 {[%clk 0:00:14.4]} 31. Nxc6 {[%clk 0:00:22]} 31... Re8 {[%clk
0:00:13.9]} 32. Ra1 {[%clk 0:00:20.3]} 32... Bb2 {[%clk 0:00:12.1]} 33. Rxa6
{[%clk 0:00:20.6]} 33... Bf6 {[%clk 0:00:12.5]} 34. b5 {[%clk 0:00:20.5]} 34...
Kf8 {[%clk 0:00:12.9]} 35. b6 {[%clk 0:00:20.5]} 35... Bg5 {[%clk 0:00:11.1]}
36. b7 {[%clk 0:00:17]} 36... Bf4 {[%clk 0:00:11.2]} 37. Ra8 {[%clk 0:00:17.4]}
37... g5 {[%clk 0:00:09.9]} 38. Kg1 {[%clk 0:00:14.2]} 38... h5 {[%clk
0:00:08.6]} 39. Kf2 {[%clk 0:00:14.3]} 39... g4 {[%clk 0:00:07.8]} 40. hxg4
{[%clk 0:00:13.7]} 40... hxg4 {[%clk 0:00:08.7]} 41. g3 {[%clk 0:00:14.2]} 41...
Bd6 {[%clk 0:00:09]} 42. Rxe8+ {[%clk 0:00:09.9]} 42... Kxe8 {[%clk 0:00:09.9]}
43. b8=Q+ {[%clk 0:00:10.6]} 43... Bxb8 {[%clk 0:00:09.7]} 44. Nxb8 {[%clk
0:00:11.5]} 44... f5 {[%clk 0:00:09.8]} 45. Ke3 {[%clk 0:00:10.9]} 45... Kf7
{[%clk 0:00:09.3]} 46. Nd7 {[%clk 0:00:09.6]} 46... Ke6 {[%clk 0:00:09.3]} 47.
Nf8+ {[%clk 0:00:09.2]} 47... Kd5 {[%clk 0:00:08.6]} 48. Kf4 {[%clk 0:00:08.7]}
48... e6 {[%clk 0:00:08.3]} 49. Ng6 {[%clk 0:00:08.1]} 49... Kd6 {[%clk
0:00:08.6]} 50. Ne5 {[%clk 0:00:07.6]} 50... Kd5 {[%clk 0:00:08.9]} 51. Nf7
{[%clk 0:00:07.6]} 51... Kd4 {[%clk 0:00:08.3]} 52. Kg5 {[%clk 0:00:06.6]} 52...
Kd5 {[%clk 0:00:08.8]} 53. Kf4 {[%clk 0:00:03.7]} 53... Kd4 {[%clk 0:00:08.5]}
54. Nh6 {[%clk 0:00:04.3]} 54... Kd5 {[%clk 0:00:08.8]} 55. Nxf5 {[%clk
0:00:04.7]} 55... exf5 {[%clk 0:00:07.4]} 56. Kxf5 {[%clk 0:00:05.6]} 56... Kd6
{[%clk 0:00:08]} 57. Kxg4 {[%clk 0:00:05.9]} 57... Ke7 {[%clk 0:00:08.8]} 58.
Kg5 {[%clk 0:00:05.3]} 58... Ke8 {[%clk 0:00:08.2]} 59. Kg6 {[%clk 0:00:04.4]}
59... Kf8 {[%clk 0:00:08.9]} 60. g4 {[%clk 0:00:04.7]} 60... Kg8 {[%clk
0:00:08.8]} 61. g5 {[%clk 0:00:05.4]} 61... Kh8 {[%clk 0:00:09]} 62. Kh6 {[%clk
0:00:06]} 62... Kg8 {[%clk 0:00:09.3]} 63. g6 {[%clk 0:00:06.5]} 63... Kh8
{[%clk 0:00:09.7]} 64. g7+ {[%clk 0:00:06.7]} 64... Kg8 {[%clk 0:00:09.6]} 65.
Kg6 {[%clk 0:00:07.6]} 1/2-1/2

[Event "*** Titled Tuesday Blitz"]
[Site "Chess.com"]
[Date "2020.04.21"]
[Round "7"]
[White "Paralinch"]
[Black "MikaelyanArman"]
[Result "1-0"]
[WhiteElo "2954"]
[BlackElo "2743"]
[TimeControl "180+1"]
[EndTime "11:23:11 PDT"]
[Termination "Paralinch won by resignation"]

1. e4 {[%clk 0:03:00.9]} 1... d5 {[%clk 0:02:57.8]} 2. exd5 {[%clk 0:03:00.8]}
2... Qxd5 {[%clk 0:02:58.7]} 3. Nc3 {[%clk 0:03:01.4]} 3... Qd8 {[%clk
0:02:58.9]} 4. Bc4 {[%clk 0:03:01.1]} 4... Nf6 {[%clk 0:02:58.8]} 5. Nf3 {[%clk
0:03:01.4]} 5... e6 {[%clk 0:02:59.1]} 6. d4 {[%clk 0:03:00.9]} 6... Be7 {[%clk
0:02:59.4]} 7. Bg5 {[%clk 0:03:01.1]} 7... h6 {[%clk 0:02:58.7]} 8. Bh4 {[%clk
0:02:59.2]} 8... O-O {[%clk 0:02:58.7]} 9. Qe2 {[%clk 0:02:59.2]} 9... a6 {[%clk
0:02:58.9]} 10. Bd3 {[%clk 0:02:57.8]} 10... Nc6 {[%clk 0:02:56.4]} 11. O-O-O
{[%clk 0:02:38.7]} 11... Nb4 {[%clk 0:02:56.1]} 12. Ne5 {[%clk 0:02:33.9]} 12...
Nfd5 {[%clk 0:02:45.4]} 13. Nxd5 {[%clk 0:02:25.5]} 13... exd5 {[%clk
0:02:26.3]} 14. Bxe7 {[%clk 0:02:16.1]} 14... Qxe7 {[%clk 0:02:27.2]} 15. a3
{[%clk 0:01:59.9]} 15... Nxd3+ {[%clk 0:02:23.5]} 16. Qxd3 {[%clk 0:02:00.8]}
16... c6 {[%clk 0:02:02.5]} 17. Qf3 {[%clk 0:01:52.5]} 17... Qg5+ {[%clk
0:02:01.4]} 18. Qe3 {[%clk 0:01:48.1]} 18... Qxe3+ {[%clk 0:01:58.8]} 19. fxe3
{[%clk 0:01:49]} 19... f6 {[%clk 0:01:55.6]} 20. Nd3 {[%clk 0:01:48.9]} 20...
Re8 {[%clk 0:01:53.3]} 21. Kd2 {[%clk 0:01:49]} 21... Bf5 {[%clk 0:01:46.9]} 22.
Rhf1 {[%clk 0:01:47.9]} 22... Bxd3 {[%clk 0:01:36.5]} 23. cxd3 {[%clk
0:01:48.8]} 23... Re6 {[%clk 0:01:32.7]} 24. Rf3 {[%clk 0:01:46.5]} 24... Rae8
{[%clk 0:01:32.2]} 25. b4 {[%clk 0:01:46.7]} 25... g5 {[%clk 0:01:30]} 26. g4
{[%clk 0:01:45.7]} 26... Kg7 {[%clk 0:01:29.5]} 27. a4 {[%clk 0:01:45.6]} 27...
Kg6 {[%clk 0:01:27.7]} 28. Rh3 {[%clk 0:01:28.4]} 28... f5 {[%clk 0:01:11.9]}
29. gxf5+ {[%clk 0:01:29.3]} 29... Kxf5 {[%clk 0:01:12.8]} 30. Rf1+ {[%clk
0:01:29.9]} 30... Kg6 {[%clk 0:01:11]} 31. Rg3 {[%clk 0:01:29.5]} 31... Rf6
{[%clk 0:01:03.8]} 32. Rxf6+ {[%clk 0:01:22.2]} 32... Kxf6 {[%clk 0:01:04.7]}
33. Rf3+ {[%clk 0:01:22.7]} 33... Kg6 {[%clk 0:01:03.3]} 34. a5 {[%clk
0:01:17.1]} 34... h5 {[%clk 0:01:03.2]} 35. h3 {[%clk 0:01:17.7]} 35... g4
{[%clk 0:00:44.2]} 36. hxg4 {[%clk 0:01:18.6]} 36... hxg4 {[%clk 0:00:45]} 37.
Rf4 {[%clk 0:01:19.1]} 37... Kh5 {[%clk 0:00:42.2]} 38. Rf7 {[%clk 0:01:16.6]}
38... Kh4 {[%clk 0:00:29.1]} 39. Rh7+ {[%clk 0:01:15.7]} 39... Kg3 {[%clk
0:00:28.7]} 40. Rxb7 {[%clk 0:01:16.5]} 40... Kh2 {[%clk 0:00:20.7]} 41. Rh7+
{[%clk 0:01:16.2]} 41... Kg2 {[%clk 0:00:20.3]} 42. Rh6 {[%clk 0:01:15.9]} 42...
Rc8 {[%clk 0:00:18.2]} 43. e4 {[%clk 0:01:14.7]} 43... g3 {[%clk 0:00:17.8]} 44.
exd5 {[%clk 0:01:06.3]} 44... cxd5 {[%clk 0:00:18.7]} 45. Rxa6 {[%clk
0:01:06.3]} 45... Rg8 {[%clk 0:00:19.2]} 46. Re6 {[%clk 0:00:59.8]} 46... Kf3
{[%clk 0:00:12.9]} 47. Re3+ {[%clk 0:00:56.5]} 47... Kf2 {[%clk 0:00:10.9]} 48.
Re2+ {[%clk 0:00:56.6]} 48... Kf1 {[%clk 0:00:10]} 49. b5 {[%clk 0:00:44.8]}
49... g2 {[%clk 0:00:08.1]} 50. b6 {[%clk 0:00:36.2]} 50... Rb8 {[%clk
0:00:07.7]} 51. Re1+ {[%clk 0:00:32.6]} 51... Kf2 {[%clk 0:00:07.9]} 52. Re2+
{[%clk 0:00:24.7]} 52... Kf1 {[%clk 0:00:07]} 53. Rxg2 {[%clk 0:00:25.3]} 53...
Kxg2 {[%clk 0:00:07.1]} 54. Kc3 {[%clk 0:00:26.2]} 54... Kf3 {[%clk 0:00:06.8]}
55. Kb4 {[%clk 0:00:26.7]} 55... Ke3 {[%clk 0:00:06.6]} 56. Kb5 {[%clk
0:00:26.8]} 56... Kxd4 {[%clk 0:00:05]} 57. a6 {[%clk 0:00:27.1]} 57... Kxd3
{[%clk 0:00:02]} 58. a7 {[%clk 0:00:27.3]} 58... Ra8 {[%clk 0:00:02.4]} 59. Ka6
{[%clk 0:00:27.7]} 59... Kc4 {[%clk 0:00:02]} 60. b7 {[%clk 0:00:28]} 60...
Rxa7+ {[%clk 0:00:02]} 61. Kxa7 {[%clk 0:00:28.7]} 61... d4 {[%clk 0:00:02.9]}
62. b8=Q {[%clk 0:00:29.3]} 62... d3 {[%clk 0:00:03.8]} 63. Qb2 {[%clk
0:00:29.3]} 63... d2 {[%clk 0:00:03.3]} 64. Qxd2 {[%clk 0:00:30.2]} 1-0